Workbook

Sheet Analysis
B1: BRIDGE PIER CAP 3
B2: Analysis Input
B4: Bridge Details:
B5: Bridge Name: | C5: Bridge 3 | E5: Pier Number: | G5: Pier-Line 2 (Left) | K5: Input Cell
B6: SFN Number: | C6: XXXXXXX | E6: Designer: | G6: XXXXXXXX | K6: Output Cell
B7: PID No.: | C7: XXXXXXX | E7: Date: | G7: XXXXXXXX
B9: 1. Total Number of Columns (Piers) | G9: 4 | I9: Asymmetrical
B15: 3. Geometry Details
B16: Distance from start of the pier cap to center of first column (C1) | G16: 4 | H16: 0 | I16: =G16*12+H16 -> 48
B17: Distance from center of first column to center of second column (C2) | G17: 17 | H17: 0 | I17: =G17*12+H17 -> 204
B18: Distance from center of second column to centerline of pier cap (C3) | G18: 8 | H18: 6 | I18: =G18*12+H18 -> 102
B19: Distance from center of third column to centerline of pier cap (C4) | G19: 0 | H19: 0 | I19: =G19*12+H19 -> 0
B20: Distance from center of fourth column to centerline of pier cap (C5) | G20: 0 | H20: 0 | I20: =G20*12+H20 -> 0
B21: Column width (W) | G21: 36
B22: Depth of pier cap (h) | G22: 48.4
B23: Thickness of pier cap (t) | G23: 36
E25: Distance from tip of cantilever to near edge of 1st column | F25: =I16-G21/2 -> 30 | G25: E in VBA <-- | H25: =I16 -> 48 | I25: Running Centerline distance as calculated <--
E26: Distance from tip of cantilever to near edge of 2nd column | F26: =F25+I17 -> 234 | H26: =H25+I17 -> 252
E27: Distance from tip of cantilever to near edge of 3rd column | F27: =F26+I18 -> 336 | H27: =H26+I18 -> 354
E28: Distance from tip of cantilever to near edge of 4th column | F28: =F27+I19 -> 336 | H28: =H27+I19 -> 354
E29: Approx. Effective depth of Pier-Cap (d=0.9*h) | F29: =0.9*G22 -> 43.56 | H29: =H28+I20 -> 354
B31: 4. Factored Loads and their Position | AI31: ,
B32: Distance of First Load from the Edge of Pier Cap | E32: 1 | F32: 10.375 | G32: =E32*12+F32 -> 22.375
B33: Spacing Between the Girders | E33: 13 | F33: 8 | G33: =E33*12+F33 -> 164
B34: Factored Load | E34: 400
B36: Factored Load | D36: Distance
B37: P1 | C37: 400 | D37: 1 | E37: 10.375 | F37: =ROUND(12*D37+E37,1) -> 22.4 | G37: A1
B38: P2 | C38: 0 | D38: 0 | E38: 0 | F38: 0 | G38: A2
B39: P3 | C39: 400 | D39: 13 | E39: 8 | F39: 164 | G39: A3
B40: P4 | C40: 0 | D40: 0 | E40: 0 | F40: 0 | G40: A4
B41: P5 | C41: 0 | D41: 0 | E41: 0 | F41: 0 | G41: A5
B42: P6 | C42: 400 | D42: 13 | E42: 8 | F42: 164 | G42: A6
B43: P7 | C43: 0 | D43: 0 | E43: 0 | F43: 0 | G43: A7
B44: P8 | C44: 0 | D44: 0 | E44: 0 | F44: 0 | G44: A8
B45: P9 | C45: 0 | D45: 0 | E45: 0 | F45: 0 | G45: A9
B46: P10 | C46: 0 | D46: 0 | E46: 0 | F46: 0 | G46: A10
B47: P11 | C47: 0 | D47: 0 | E47: 0 | F47: 0 | G47: A11
B48: P12 | C48: 0 | D48: 0 | E48: 0 | F48: =12*D48+E48 -> 0 | G48: A12
B51: Distance of Load from the edge of the pier cap | F51: Distance from the edge of the pier cap to the reaction centerline
B52: D1 | C52: =F37 -> 22.4 | D52: D7 | E52: =C57+F43 -> 350.4 | F52: Edge B1 | G52: =F25+C301/2 -> 43.62017804 | H52: Edge B7 | I52: =IF(C307=0,G57,F27+C307/2) -> 259.2757009
B53: D2 | C53: =C52+F38 -> 22.4 | D53: D8 | E53: =E52+F44 -> 350.4 | F53: Edge B2 | G53: =IF(C302=0,G52,F25+C301+C302/2) -> 43.62017804 | H53: Edge B8 | I53: =IF(G9=5,IF(C308=0,I52,F27+C307+C308),IF(C308=0,I52,F27+C307+C308/2)) -> 259.2757009
B54: D3 | C54: =C53+F39 -> 186.4 | D54: D9 | E54: =E53+F45 -> 350.4 | F54: Edge B3 | G54: =IF(C303=0,G53,F25+C301+C302+C303/2) -> 61.62017804 | H54: Edge B9 | I54: =IF(C309=0,I53,F27+C307+C308+C309/2) -> 259.2757009
B55: D4 | C55: =C54+F40 -> 186.4 | D55: D10 | E55: =E54+F46 -> 350.4 | F55: Edge B4 | G55: =IF(C304=0,G54,F26+C304/2) -> 241.2757009 | H55: Edge B10 | I55: =IF(C310=0,I54,F28+C310/2) -> 259.2757009
B56: D5 | C56: =C55+F41 -> 186.4 | D56: D11 | E56: =E55+F47 -> 350.4 | F56: Edge B5 | G56: =IF(G9=3,IF(C305=0,G55,F26+C304+C305),IF(C305=0,G55,F26+C304+C305/2)) -> 241.2757009 | H56: Edge B11 | I56: =IF(G9=7,IF(C311=0,I55,F28+C310+C311),IF(C311=0,I55,F28+C310+C311/2)) -> 259.2757009
B57: D6 | C57: =C56+F42 -> 350.4 | D57: D12 | E57: =E56+F48 -> 350.4 | F57: Edge B6 | G57: =IF(C306=0,G56,F26+C304+C305+C306/2) -> 259.2757009 | H57: Edge B12 | I57: =IF(C312=0,I56,F28+C310+C311+C312/2) -> 259.2757009
B60: 6. Check whether the Pier Cap is Deep | F60: =IF((SUM(D63:D74)/COUNTIF(D63:D74,"<>0"))>2, "This pier cap is slender. ", "This pier cap is deep. Please continue with Section 7.") -> This pier cap is deep. Please continue with Section 7.
B62: Region | C62: Shear span (a) | D62: a/d ratio: | E62: Result
B63: R1 | C63: =IF(F301=0,0,ABS(C52-(F25+C301/2))) -> 21.22017804 | D63: =C63/F29 -> 0.4871482562 | E63: =IF(D63=0,"Zero Region",IF(D63<=2,"Deep Region","Slender Region")) -> Deep Region
B64: R2 | C64: =IF(F302=0,0,ABS(C53-(F25+C301+C302/2))) -> 0 | D64: =ABS(C64/F29) -> 0 | E64: =IF(D64=0,"Zero Region",IF(D64<=2,"Deep Region","Slender Region")) -> Zero Region
B65: R3 | C65: =IF(F303=0,0,IF(AND(C39>0,C40>0),ABS(C54-(F25+G21-C303/2)),ABS(C55-(F25+G21-C303/2)))) -> 124.779822 | D65: =C65/F29 -> 2.86455055 | E65: Slender Region
B66: R4 | C66: =IF(F304=0,0,ABS(C55-(F26+C304/2))) -> 54.87570093 | D66: =C66/F29 -> 1.259772749 | E66: Deep Region
B67: R5 | C67: =IF(F305=0,0,ABS(C56-(F26+C304+C305/2))) -> 0 | D67: =C67/F29 -> 0 | E67: Zero Region
B68: R6 | C68: =IF(F306=0,0,IF(AND(C42>0,C43>0),ABS(C57-(F26+G21-C306/2)),ABS(E52-(F26+G21-C306/2)))) -> 91.12429907 | D68: =C68/F29 -> 2.091926058 | E68: Slender Region
B69: R7 | C69: =IF(F307=0,0,ABS(E52-(F27+C307/2))) -> 0 | D69: =C69/F29 -> 0 | E69: Zero Region
B70: R8 | C70: =IF(F308=0,0,ABS(E53-(F27+C307+C308/2))) -> 0 | D70: =C70/F29 -> 0 | E70: Zero Region
B71: R9 | C71: =IF(F309=0,0,IF(AND(C45>0,C46>0),ABS(E54-(F27+G23-C309/2)),ABS(E55-(F27+G23-C309/2)))) -> 0 | D71: =C71/F29 -> 0 | E71: Zero Region
B72: R10 | C72: =IF(F310=0,0,ABS(E55-(F28+C310/2))) -> 0 | D72: =C72/F29 -> 0 | E72: Zero Region
B73: R11 | C73: =IF(F311=0,0,ABS(E56-(F28+C310+C311/2))) -> 0 | D73: =C73/F29 -> 0 | E73: Zero Region
B74: R12 | C74: =IF(F312=0,0,ABS(E57-(F28+G23-C312/2))) -> 0 | D74: =C74/F29 -> 0 | E74: Zero Region
B77: 7. Material Properties | F77: 8. Resistance Factors Used
B78: Concrete strength (f'c) | D78: 4 | F78: For concrete | I78: 0.7
B79: Rebar yield strength (fy) | D79: 60 | F79: For longitudinal rebar | I79: 0.9
B80: Enter the clear cover | D80: 2 | F80: For stirrup | I80: 0.9
B81: Stirrup yield strength(fy) | D81: 60 | F81: CCC v-factor for the bearing and back face | I81: 0.85
B82: Stirrup bar area | D82: 0.31 | F82: CCT v-factor for the bearing and back face | I82: 0.7
F83: CTT v-factor for the bearing and back face | I83: =MAX(MIN(0.85-D78/20, 0.65), 0.45) -> 0.65
B86: 9. Reinforcement Details
B88: 9A. Longitudinal Reinforcement | G88: Rebar Area & Centroid'!A1
B89: Region | C89: Top Steel (in2, in) | E89: Bottom Steel (in2, in)
C90: Total Area (At) | D90: Centroid (Ct) | E90: Total Area (Ab) | F90: Centroid (Cb)
B91: R1 | C91: 12 | D91: 5 | E91: 12 | F91: 5
B92: R2 | C92: 12 | D92: 5 | E92: 12 | F92: 5
B93: R3 | C93: 12 | D93: 5 | E93: 12 | F93: 5
B94: R4 | C94: 12 | D94: 5 | E94: 12 | F94: 5
B95: R5 | C95: 12 | D95: 5 | E95: 12 | F95: 5
B96: R6 | C96: 12 | D96: 5 | E96: 12 | F96: 5
B97: R7 | C97: 0 | D97: 0 | E97: 0 | F97: 0
B98: R8 | C98: 0 | D98: 0 | E98: 0 | F98: 0
B99: R9 | C99: 0 | D99: 0 | E99: 0 | F99: 0
B100: R10 | C100: 0 | D100: 0 | E100: 0 | F100: 0
B101: R11 | C101: 0 | D101: 0 | E101: 0 | F101: 0
B102: R12 | C102: 0 | D102: 0 | E102: 0 | F102: 0
B105: 9B. Transverse Reinforcement | F105: 9C. Min Horizontal Crack Control Reinforcement
B106: Region | C106: No. of Legs | D106: Stirrup Spacing | F106: Crack control rebar area (in2) | I106: 0.44
B107: R1 | C107: 4 | D107: 9 | F107: Spacing (in) | I107: 11
B108: R2 | C108: 4 | D108: 9 | F108: No of layers of crack control rebar | I108: 2
B109: R3 | C109: 4 | D109: 9 | F109: Provided crack control reinforcement | I109: =IF(I107=0,"-",I106*I108/(I107*$G$23)) -> 0.002222222222
B110: R4 | C110: 4 | D110: 9 | F110: Code required crack control reinforcement | I110: 0.003
B111: R5 | C111: 4 | D111: 9
B112: R6 | C112: 4 | D112: 9
B113: R7 | C113: 0 | D113: 0
B114: R8 | C114: 0 | D114: 0
B115: R9 | C115: 0 | D115: 0
B116: R10 | C116: 0 | D116: 0
B117: R11 | C117: 0 | D117: 0
B118: R12 | C118: 0 | D118: 0
B121: 10. Base Plate Dimensions
B122: Base plate (bearing plate) length parallel to the pier cap (Lb) | F122: 16
B123: Base plate (bearing plate) width perpendicular to the pier cap (Wb) | F123: 21
B126: 11. Reinforcement Development
B128: Horizontal length available (Ld) | E128: =IF(C37=0,IF(C38=0,C54+F122/2-D80-D93/(TAN(J303)),C53+F122/2-D80-D92/(TAN(J302))),C52+F122/2-D80-D91/(TAN(J301))) -> 29.78152201
B130: Top Tension Bars
B131: Enter the diameter of the top longitudinal bar: | E131: 1.128
B132: Enter the length of the hook provided: | E132: 32 | F132: =IF(E132>=12*E131," It qualifies for 90° hook.", "It does not qualify for hook. Therefore, it will be considered as straight bar.") -> It qualifies for 90° hook.
B133: Basic development length | E133: =IF(E132<12*E131,2.4*E131*(D79)/SQRT(D78),38*(E131)/SQRT(D78)*(D79/60)) -> 21.432
B135: Modification Factor
B136: 1. Are bars epoxy coated? | D136: Yes | E136: =IF(D136="Yes",1.2,1) -> 1.2
B137: =IF(E132>=12*E131,"2. Is the side cover for No. 11 bar and smaller, normal to the plane of hook, is not less than 2.5 in, and 90° hook, cover on bar extension beyond hook not less than 2.0 in?","2. For above epoxy-coated bars, Is the cover less than 3 times diameter of rebar or clear spacing between bars less than 6 times diameter of rebar?") -> 2. Is the side cover for No. 11 bar and smaller, normal to the plane of hook, is not less than 2.5 in, and 90° hook, cover on bar extension beyond hook not less than 2.0 in? | D137: Yes | E137: =IF(E132>=12*E131,IF(D137="Yes",0.7,1),IF(D137="Yes",1.25,1)) -> 0.7
B139: Required development length | E139: =E133*E136*E137 -> 18.00288
B140: Available development length (Ld) | E140: =E128 -> 29.78152201
B142: Horizontal length available | E142: =IF(C37=0,IF(C38=0,G54+C303/2-D80-F93/(TAN(J303)),G53+C302/2-D80-F92/(TAN(J302))),G52+C301/2-D80-F91/(TAN(J301))) -> 56.62187809
B144: Bottom Tension Bars
B145: Enter the Diameter of the Bottom longitudinal bar: | E145: 0
B146: Enter the Length of the hook Provided: | E146: 0 | F146: =IF(E146>=12*E145," It qualifies for 90° hook.", "It does not qualify for hook. Therefore, it will be considered as straight bar.") -> It qualifies for 90° hook.
B147: Basic Development Length | E147: =IF(E146<12*E145,2.4*E145*(D79)/SQRT(D78),38*(E145)/SQRT(D78)*(D79/60)) -> 0
B149: Modification Factor
B150: 1. Are those bars epoxy coated? | D150: No | E150: =IF(D150="Yes",1.2,1) -> 1
B151: =IF(E146>=12*E145,"2. Is the side cover for No. 11 Bar and smaller, normal to the plane of hook, is not less than 2.5 in, and 90° hook, cover on bar extension beyond hook not less than 2.0 in?","2. For above epoxy-coated bars, Is the cover less than 3 times diameter of rebar or clear spacing between bars less than 6 times diameter of rebar") -> 2. Is the side cover for No. 11 Bar and smaller, normal to the plane of hook, is not less than 2.5 in, and 90° hook, cover on bar extension beyond hook not less than 2.0 in? | D151: No | E151: =IF(E146>=12*E145,IF(D151="Yes",0.7,1),IF(D151="Yes",1.25,1)) -> 1
B153: Required development length | E153: =E147*E150*E151 -> 0
B154: Available development length (Ld) | E154: =E142 -> 56.62187809
B156: Reinforcement Capacity Multiplier: | E156: =IF(Appendix!D19<20,MIN(Analysis!E140/Analysis!E139, 1), MIN(E154/E153,1)) -> 1
B159: Analysis Output
B177: 13. Strut and Tie Output Summary
B179: STM Members | D179: Summary
D180: Member Code | E180: Force (k) | F180: Capacity (k) | G180: Utilization Ratio | H180: Result
D181: A-E | E181: 221.0435213 | F181: =IF(Appendix!$D$19=11,G399*Analysis!$E$156,G399) -> 453.6 | G181: =IF(F181=0,0,E181/F181) -> 0.4873093502 | H181: =IF(OR(E181=0,F181=0),"-",IF(E181>=0,IF(ABS(E181)<ABS(F181),"PASS","Flexure Overloaded"),IF(ABS(E181)<ABS(F181),"PASS","Compression Overloaded"))) -> PASS | J181: Top Members
D182: C-E | E182: 0 | F182: =IF(Appendix!$D$19=12,G400*Analysis!$E$156,G400) -> 453.6 | G182: =IF(AND(ABS(H29-E57)<0.01*H29,G9=1),"-",IF(F182=0,0,E182/F182)) -> 0 | H182: -
D183: E-K | E183: 297.491132 | F183: =IF(Appendix!$D$19=13,G401*Analysis!$E$156,G401) -> 453.6 | G183: =IF(F183=0,0,E183/F183) -> 0.6558446473 | H183: PASS
D184: E-K | E184: 297.491132 | F184: =G402 -> 453.6 | G184: 0.6558446473 | H184: PASS
D185: I-K | E185: 0 | F185: =G403 -> 453.6 | G185: =IF(AND(ABS(H29-E57)<0.01*H29,G9=3),"-",IF(F185=0,0,E185/F185)) -> 0 | H185: -
D186: K-Q | E186: 297.491132 | F186: 453.6 | G186: 0.6558446473 | H186: =IF(OR(E186=0,F186=0),"-",IF(E186>=0,IF(ABS(E186)<ABS(F186),"PASS","Flexure Overloaded"),IF(ABS(E186)<ABS(F186),"PASS","Compression Overloaded"))) -> PASS
D187: K-Q | E187: 297.491132 | F187: 0 | G187: 0 | H187: =IF(OR(E187=0,F187=0),"-",IF(E187>=0,IF(ABS(E187)<ABS(F187),"PASS","Flexure Overloaded"),IF(ABS(E187)<ABS(F187),"PASS","Compression Overloaded"))) -> -
D188: O-Q | E188: 0 | F188: 0 | G188: =IF(AND(ABS(H29-E57)<0.01*H29,G9=5),"-",IF(F188=0,0,E188/F188)) -> 0 | H188: -
D189: Q-W | E189: 221.0435213 | F189: 0 | G189: 0 | H189: -
D190: Q-W | E190: 221.0435213 | F190: 0 | G190: 0 | H190: -
D191: U-W | E191: 0 | F191: 0 | G191: =IF(AND(ABS(H29-E57)<0.01*H29,G9=7),"-",IF(F191=0,0,E191/F191)) -> 0 | H191: -
D192: W+ | E192: 0 | F192: 0 | G192: 0 | H192: =IF(OR(E192=0,F192=0),"-",IF(E192>=0,IF(ABS(E192)<ABS(F192),"PASS","Flexure Overloaded"),IF(ABS(E192)<ABS(F192),"PASS","Compression Overloaded"))) -> -
D193: 2-6 | E193: -221.0435213 | F193: =IF(Appendix!$D$19=21,G411*Analysis!$E$156,G411) -> -1101.6 | G193: =IF(F193=0,0,E193/F193) -> 0.2006567913 | H193: PASS | J193: Bottom Members
D194: 4-6 | E194: 0 | F194: =IF(Appendix!$D$19=22,G412*Analysis!$E$156,G412) -> 453.6 | G194: 0 | H194: -
D195: 6-8 | E195: 122.8799872 | F195: =IF(Appendix!$D$19=23,G413*Analysis!$E$156,G413) -> 453.6 | G195: 0.2708994427 | H195: PASS
D196: 8-12 | E196: -297.491132 | F196: =G414 -> -1101.6 | G196: 0.2700536783 | H196: PASS
D197: 10-12 | E197: 0 | F197: =G415 -> 453.6 | G197: 0 | H197: -
D198: 12-14 | E198: 195.8645923 | F198: 453.6 | G198: 0.4318002476 | H198: PASS
D199: 14-18 | E199: -297.491132 | F199: -453.6 | G199: 0.6558446473 | H199: PASS
D200: 16-18 | E200: 0 | F200: 0 | G200: 0 | H200: -
D201: 18-20 | E201: 122.8799872 | F201: 0 | G201: 0 | H201: -
D202: 20-24 | E202: -221.0435213 | F202: -453.6 | G202: 0.4873093502 | H202: PASS
D203: 22-24 | E203: 0 | F203: 0 | G203: 0 | H203: -
D204: 24+ | E204: 0 | F204: 0 | G204: 0 | H204: -
B205: Input 0 for "Do not use Tie" Input 1 for "Use Tie" Input Your Option Down Here ↓↓↓↓↓↓↓ | D205: B-1 | E205: 0 | F205: =IF(C217=0,"-",C381) -> - | G205: =IF(F205=0,0,IF(C217=0,0,E205/F205)) -> 0 | H205: =IF(OR(C217=0, F205=0),"-",IF(ABS(E205)<ABS(F205),"PASS","Shear Overloaded")) -> - | J205: Vertical Members
D206: D-3 | E206: 0 | F206: =IF(C219=0,"-",C382) -> - | G206: =IF(F206=0,0,IF(C219=0,0,E206/F206)) -> 0 | H206: =IF(OR(C219=0, F206=0),"-",IF(ABS(E206)<ABS(F206),"PASS","Shear Overloaded")) -> -
D207: F-5 | E207: 0 | F207: =IF(C221=0,"-",C383) -> - | G207: =IF(F207=0,0,IF(C221=0,0,E207/F207)) -> 0 | H207: =IF(OR(C221=0, F207=0),"-",IF(ABS(E207)<ABS(F207),"PASS","Shear Overloaded")) -> -
D208: H-7 | E208: 0 | F208: =IF(C223=0,"-",C384) -> - | G208: =IF(F208=0,0,IF(C223=0,0,E208/F208)) -> 0 | H208: =IF(OR(C223=0, F208=0),"-",IF(ABS(E208)<ABS(F208),"PASS","Shear Overloaded")) -> -
D209: J-9 | E209: 0 | F209: =IF(C225=0,"-",C385) -> - | G209: =IF(F209=0,0,IF(C225=0,0,E209/F209)) -> 0 | H209: =IF(OR(C225=0, F209=0),"-",IF(ABS(E209)<ABS(F209),"PASS","Shear Overloaded")) -> -
D210: L-11 | E210: 0 | F210: =IF(C227=0,"-",C386) -> - | G210: =IF(F210=0,0,IF(C227=0,0,E210/F210)) -> 0 | H210: =IF(OR(C227=0, F210=0),"-",IF(ABS(E210)<ABS(F210),"PASS","Shear Overloaded")) -> -
D211: N-13 | E211: 0 | F211: =IF(C229=0,"-",C387) -> - | G211: =IF(F211=0,0,IF(C229=0,0,E211/F211)) -> 0 | H211: =IF(OR(C229=0, F211=0),"-",IF(ABS(E211)<ABS(F211),"PASS","Shear Overloaded")) -> -
D212: P-15 | E212: 0 | F212: =IF(C231=0,"-",C388) -> - | G212: =IF(F212=0,0,IF(C231=0,0,E212/F212)) -> 0 | H212: =IF(OR(C231=0, F212=0),"-",IF(ABS(E212)<ABS(F212),"PASS","Shear Overloaded")) -> -
D213: R-17 | E213: 0 | F213: =IF(C233=0,"-",C389) -> - | G213: =IF(F213=0,0,IF(C233=0,0,E213/F213)) -> 0 | H213: =IF(OR(C233=0, F213=0),"-",IF(ABS(E213)<ABS(F213),"PASS","Shear Overloaded")) -> -
D214: T-19 | E214: 0 | F214: =IF(C235=0,"-",C390) -> - | G214: =IF(F214=0,0,IF(C235=0,0,E214/F214)) -> 0 | H214: =IF(OR(C235=0, F214=0),"-",IF(ABS(E214)<ABS(F214),"PASS","Shear Overloaded")) -> -
D215: V-21 | E215: 0 | F215: =IF(C237=0,"-",C391) -> - | G215: =IF(F215=0,0,IF(C237=0,0,E215/F215)) -> 0 | H215: =IF(OR(C237=0, F215=0),"-",IF(ABS(E215)<ABS(F215),"PASS","Shear Overloaded")) -> -
D216: X-23 | E216: 0 | F216: =IF(C239=0,"-",C392) -> - | G216: =IF(F216=0,0,IF(C239=0,0,E216/F216)) -> 0 | H216: =IF(OR(C239=0, F216=0),"-",IF(ABS(E216)<ABS(F216),"PASS","Shear Overloaded")) -> -
C217: 0 | D217: A-2 | E217: -457.0122956 | F217: =IF(C217=0,G454,G430) -> -854.6145148 | G217: =IF(OR(F217=0,E217=0),0,E217/F217) -> 0.5347584058 | H217: =IF(G217<=1,"PASS",IF(E217<>0,"Shear Overloaded","-")) -> PASS | J217: Inclined Members
D218: B-2 | E218: 0 | F218: =IF(C217=0,0,G431) -> 0 | G218: =IF(OR(F218=0,E218=0),0,E218/F218) -> 0 | H218: =IF(G218<=1,"PASS",IF(E218<>0,"Shear Overloaded","-")) -> PASS
C219: 0 | D219: C-4 | E219: 0 | F219: =IF(C219=0,G455,G432) -> 0 | G219: 0 | H219: =IF(G219<=1,"PASS",IF(E219<>0,"Shear Overloaded","-")) -> PASS
D220: D-4 | E220: 0 | F220: =IF(C219=0,0,G433) -> 0 | G220: 0 | H220: =IF(G220<=1,"PASS",IF(E220<>0,"Shear Overloaded","-")) -> PASS
C221: 0 | D221: E-6 | E221: -359.8408373 | F221: =IF(C221=0,G456,G434) -> -502.1796731 | G221: 0.7165579505 | H221: PASS
D222: E-5 | E222: 0 | F222: =IF(C221=0,0,G435) -> 0 | G222: 0 | H222: =IF(G222<=1,"PASS",IF(E222<>0,"Shear Overloaded","-")) -> PASS
C223: 0 | D223: E-8 | E223: -513.0712836 | F223: =IF(C223=0,G457,G436) -> -653.9412737 | G223: 0.7845831181 | H223: PASS
D224: H-8 | E224: 0 | F224: =IF(C223=0,0,G437) -> 0 | G224: 0 | H224: =IF(G224<=1,"PASS",IF(E224<>0,"Shear Overloaded","-")) -> PASS
C225: 0 | D225: I-10 | E225: 0 | F225: =IF(C225=0,G458,G438) -> 0 | G225: 0 | H225: PASS
D226: J-10 | E226: 0 | F226: =IF(C225=0,0,G439) -> 0 | G226: 0 | H226: =IF(G226<=1,"PASS",IF(E226<>0,"Shear Overloaded","-")) -> PASS
C227: 0 | D227: K-12 | E227: -532.3531447 | F227: =IF(C227=0,G459,G440) -> -699.8364415 | G227: 0.7606822297 | H227: PASS
D228: K-11 | E228: 0 | F228: =IF(C227=0,0,G441) -> 0 | G228: 0 | H228: =IF(G228<=1,"PASS",IF(E228<>0,"Shear Overloaded","-")) -> PASS
C229: 0 | D229: K-14 | E229: =IF(C229=0,Appendix!J96,Appendix!J84) -> 0 | F229: =IF(C229=0,G460,G442) -> 0 | G229: 0 | H229: PASS
D230: N-14 | E230: =IF(C229=0,0,Appendix!J84) -> 0 | F230: =IF(C229=0,0,G443) -> 0 | G230: 0 | H230: =IF(G230<=1,"PASS",IF(E230<>0,"Shear Overloaded","-")) -> PASS
C231: 0 | D231: O-16 | E231: =IF(C231=0,Appendix!J97,Appendix!J85) -> 0 | F231: =IF(C231=0,G461,G444) -> 0 | G231: 0 | H231: PASS
D232: P-16 | E232: =IF(C231=0,0,Appendix!J85) -> 0 | F232: =IF(C231=0,0,G445) -> 0 | G232: 0 | H232: =IF(G232<=1,"PASS",IF(E232<>0,"Shear Overloaded","-")) -> PASS
C233: 0 | D233: Q-18 | E233: =IF(C233=0,Appendix!J98,Appendix!J86) -> 0 | F233: =IF(C233=0,G462,G446) -> 0 | G233: 0 | H233: PASS
D234: Q-17 | E234: =IF(C233=0,0,Appendix!J86) -> 0 | F234: =IF(C233=0,0,G447) -> 0 | G234: 0 | H234: =IF(G234<=1,"PASS",IF(E234<>0,"Shear Overloaded","-")) -> PASS
C235: 0 | D235: Q-20 | E235: =IF(C235=0,Appendix!J99,Appendix!J87) -> 0 | F235: =IF(C235=0,G463, G448) -> 0 | G235: 0 | H235: PASS
D236: T-20 | E236: =IF(C235=0,0,Appendix!J87) -> 0 | F236: =IF(C235=0,0,G449) -> 0 | G236: 0 | H236: =IF(G236<=1,"PASS",IF(E236<>0,"Shear Overloaded","-")) -> PASS
C237: 0 | D237: U-22 | E237: =IF(C237=0,Appendix!J100,Appendix!J88) -> 0 | F237: =IF(C237=0,G464,G450) -> 0 | G237: 0 | H237: PASS
D238: V-22 | E238: =IF(C237=0,0,Appendix!J88) -> 0 | F238: =IF(C237=0,0,G451) -> 0 | G238: 0 | H238: =IF(G238<=1,"PASS",IF(E238<>0,"Shear Overloaded","-")) -> PASS
C239: 0 | D239: W-24 | E239: =IF(C239=0,Appendix!J101,Appendix!J89) -> 0 | F239: =IF(C239=0,G465,G452) -> 0 | G239: 0 | H239: PASS
D240: W-23 | E240: =IF(C239=0,0,Appendix!J89) -> 0 | F240: =IF(C239=0,0,G453) -> 0 | G240: 0 | H240: =IF(G240<=1,"PASS",IF(E240<>0,"Shear Overloaded","-")) -> PASS
B241: Bearing Areas | C241: Nodes at ⇉ | D241: A | E241: =C37 -> 400 | F241: =$I$78*D349*$F$123*$F$122*Appendix!$P$41 -> 771.5645777 | G241: =IF(F241=0,0,E241/F241) -> 0.5184271175 | H241: =IF(G241<=1,"PASS",IF(E241<>0,"Shear Overloaded","-")) -> PASS | J241: 1
D242: C | E242: 0 | F242: =$I$78*D351*$F$123*$F$122*Appendix!$P$41 -> 771.5645777 | G242: 0 | H242: =IF(G242<=1,"PASS",IF(E242<>0,"Shear Overloaded","-")) -> PASS
D243: E | E243: 400 | F243: =$I$78*D353*$F$123*$F$122*Appendix!$P$41 -> 771.5645777 | G243: 0.5184271175 | H243: PASS
D244: G | E244: 0 | F244: =$I$78*D355*$F$123*$F$122*Appendix!$P$41 -> 771.5645777 | G244: 0 | H244: PASS
D245: I | E245: 0 | F245: =$I$78*D357*$F$123*$F$122*Appendix!$P$41 -> 771.5645777 | G245: 0 | H245: PASS
D246: K | E246: 400 | F246: =$I$78*D359*$F$123*$F$122*Appendix!$P$41 -> 771.5645777 | G246: 0.5184271175 | H246: PASS
D247: M | E247: 0 | F247: =$I$78*D361*$F$123*$F$122*Appendix!$P$41 -> 771.5645777 | G247: 0 | H247: PASS
D248: O | E248: 0 | F248: =$I$78*D363*$F$123*$F$122*Appendix!$P$41 -> 771.5645777 | G248: 0 | H248: PASS
D249: Q | E249: 0 | F249: =$I$78*D365*$F$123*$F$122*Appendix!$P$41 -> 771.5645777 | G249: 0 | H249: PASS
D250: S | E250: 0 | F250: =$I$78*D367*$F$123*$F$122*Appendix!$P$41 -> 771.5645777 | G250: 0 | H250: PASS
D251: U | E251: 0 | F251: =$I$78*D369*$F$123*$F$122*Appendix!$P$41 -> 771.5645777 | G251: 0 | H251: PASS
D252: W | E252: 0 | F252: =$I$78*D371*$F$123*$F$122*Appendix!$P$41 -> 771.5645777 | G252: 0 | H252: PASS
D253: 2 | E253: =Appendix!B79 -> 400 | F253: =IF(Appendix!$U$30="Circular",$I$78*I349*Appendix!V78*G$21/1.273,$I$78*I349*Appendix!V78*$G$21) -> 1014.364863 | G253: 0.3943354258 | H253: PASS | J253: 2
D254: 4 | E254: =Appendix!B80 -> 0 | F254: =IF(Appendix!$U$30="Circular",$I$78*I351*Appendix!V79*G$21/1.273,$I$78*I351*Appendix!V79*$G$21) -> 0 | G254: 0 | H254: PASS
D255: 6 | E255: =Appendix!B81 -> 105.8397305 | F255: =IF(Appendix!$U$30="Circular",$I$78*I353*Appendix!V80*G$21/1.273,$I$78*I353*Appendix!V80*$G$21) -> 268.4002592 | G255: 0.3943354258 | H255: PASS
... 646 more rows

Sheet Commentary
A1: Commentary Section
A2: Reset Button | B2: This button makes all input 0 ‘zero’ and deletes all input and output graphics. It is recommended to click on ‘Reset All Data’ whenever a new pier cap is being analyzed.
A5: Section 1. | B5: This is the total number of supporting columns (i.e., piers) in a full pier cap. This analyzes symmetrical as well as asymmetrical pier caps. If the pier cap being analyzed is asymmetrical, a check mark is provided. The spreadsheet is designed to analyze a maximum number of eight columns for symmetrical pier caps and maximum of four columns for asymmetrical pier caps. For symmetrical pier caps, the input and output of the analysis are limited up to the centerline, while for asymmetrical pier caps, the full pier cap analysis is performed.
A11: Section 2. | B11: ‘2. Generate’ is a form control button, which runs VBA codes in the background to generate a sketch depending upon the number of piers. The further input in Section 3 and Section 4 are made to be based on the generated sketch. Also, the input fields are highlighted depending upon the number of piers.
A15: Section 3. | B15: This section requires the input of geometrical details of the pier cap and columns. For symmetrical pier caps, the input variables are required only up to centerline but for asymmetrical pier cap, full pier cap input variable are required. From the pier cap drawings, look for the values of variables C1, C2… W, t, h, etc. The other inputs except column width (W) are straight forward. The input for column width (W) requires identification if the column is circular or square. Select circular or square from the drop down list.
A21: Section 4. | B21: These loads are the girder loads that are transferred to the cap beam and the spacing between each girder loads are input. The self-weight of the pier cap are not automatically considered by STM-CAP. It can be added manually to the applied loads. Applying the entire self-weight from the top of the beam may be conservative. Only half may be applied and the other half (representing the lower half of the beam) may be assumed to directly do into the column supports, without stressing the struts and ties. There are three options available: Option 1: If each girder loads and the spacing between the girders are same; go with this option: If this is the case, there are just 3 input to be made. Input the distance from the edge of pier cap to the first girder load as first input in feet and inches. Also, input the constant spacing between the girders as second input and constant girder factored loads as third input. Then press 'Generate Load Table' Button. This will populate the below 'Factored Load and Distance' table itself. Note: These factored loads depends upon different load combination based on AASHTO LRFD 2017. Option 2: If the spacing between the girders are same but the factored girder loads are different, the process is same as 'Option 1'. After the table is populated, change the load values in the 'Factored Load' column of the table to the new factored girder loads. Option 3: If the spacing between the girders are different, then the input should be done manually based on regions:
B35: The regions are divided as shown in Fig. 1 For every individual column, there are three regions: left, middle, and right. The left regions start from the edge of a pier cap (e.g., R1) or from the mid-point of a span (e.g., R4) to the first edge of the column. The middle regions are the regions just above the columns (e.g., R2, R5). The right regions goes from the ends of middle regions to the mid-point of the next span. The load in Region 1 is referred to as P1 and so on. If any of the regions do not have a load, input a value of 0 'zero'. Also, the corresponding distance A should be input as 0 'zero'. If any load (Pn) is 0 'zero', then the corresponding distance (An) should also be input as 0 'zero'. In Fig. 2, there is no load in Region 2; therefore, P2 = 0 and A2 = 0. Similarly, P5 and A5 equals to zero and so on. If there is only load in mid-span, it can be input as [P3, A3] or [P4, A4]. If mid-span has two loads, the first load is input as [P3, A3] and the second load as [P4, A4]. The distance (A1, A2, A3, etc.) are the distances between the loads. The first distance would be the distance from the left edge of the pier cap to the girder load; the other distances are the spacing between the girders, simply can be referred as girder spacing.
A46: Section 5. | B46: ‘5. Generate’ is a form control button which generates a sketch depending upon the input made for geometry details and load details. A message is displayed to confirm the accuracy of the generated drawing. If any mistake is noticed, it is required to re-input Section 3 & Section 4 and generate again.
A50: Section 6. | B50: This section indicates whether the pier cap is deep or slender. For a slender regions, this spreadsheet can still be used, but the traditional sectional analysis will give larger capacities for slender regions.
B70: For shear span-to-depth ratios (a/d) less than 2.0 (i.e., deep beams) as shown in Fig. 3, this spreadsheet will provide more accurate result and less conservative results. Note: Shear span is the distance from the point of application of concentrated force to its respective reaction force (i.e., supporting column) as shown in Fig. 4. The depth is the effective depth of the member (i.e., the distance from the extreme compression fiber to the centroid of the tension reinforcement).
A75: Section 7. | B75: This section requires the input of material properties (f'c, fy, fy,stirrup)
B76: Stirrup Area: This corresponds to the sectional area of a single leg of a stirrup bar.
A78: Section 8. | B78: The resistance factor input is the material resistance factors and the nodal interface factors. The resistance factors are based on Clause 5.5.4.2 of AASHTO LRFD 2017. Similarly, the nodal compressive strength multiplier for back and bearing face are based on Clause 5.8.2.2 of AASHTO LRFD 2017. These factors can be updated with the new edition of code.
A82: Section 9. | B82: Reinforcement Details:
B83: Longitudinal Reinforcement: The flexural reinforcement refers to the longitudinal reinforcement. The input should be made for each region because the reinforcement may not be constant throughout the beam. While inputting, be aware of the rebar change locations. The input includes the total area of top and bottom reinforcement and the centroidal distances of top reinforcement from top and bottom reinforcement from bottom of the beam. Transverse Reinforcement: The transverse reinforcement refers to the stirrups. Input the total number of legs and the spacing of the stirrups for each region.
B89: Horizontal crack control reinforcement as shown in Fig. 5, is based on Clause 5.8.2.6 of AASHTO LRFD 2017. This reinforcement is intended to control the width of cracks and to ensure a minimum ductility for the member so that, if required, significant redistribution of internal stresses is possible. If no crack control reinforcement is provided, stress redistribution will be virtually impossible. . This clause is used to limit the diagonal crack width as a design requirement of strength and serviceability. The strength of the node faces are significantly affected if required amount of crack control reinforcement is not provided.
A95: Section 10. | B95: This section needs input for bearing plate dimensions (Lb and Wb). Bearing plate length or base plate length (Lb): This refers to the dimension of the plate parallel to the pier cap. Bearing plate length or base plate width (Wb): This refers to the dimension of the plate perpendicular to the pier cap.
A100: Section 11. | B100: The development length is calculated in reference to AASHTO code. The development length calculation for straight bar follows Clause 5.10.8.2.1 of AASHTO LRFD 2017 while the development length for hook is based on Clause 5.10.8.2.4 of the same code. The development length is equal to basic development length times the modification factors. Fig. 6 explains the calculation procedure for the development length. First, the basic development length is calculated; then, it is multiplied with the modification factors . For modification factor, it asks Yes or No questions through pull-down menus to determine the modification factor.
B106: If the rebar is not fully developed, the strength of rebar is multiplied by a factor, reinforcement capacity multiplier. It is the ratio of available development length to required development length.
A110: Section 12. | B110: This section shows output model for the strut-and-tie analysis method. A sample output model is shown in Fig. 5. The model shown is color coded; 'Red' represents 'Tie' and 'Blue' represents 'Strut' and 'Intersection' represents 'Node'. The nodes are labelled. The utilization ratio (ratio of load to capacity or demand to capacity), is shown for critical strut and ties (not every elements) in the model.
A115: Section 13. | B115: This section shows the summary table for the strut and tie output model. Member Code: This refers to the name of the member from the output model. For example, B-F means a member from B to F. Force: These forces are the member forces in the truss model, as per the LRFD load combination, based on the load input in Section 4. Capacity: These capacities are the factored capacities in reference to AASHTO 2017which include resistance factors as input in Section 8. Utilization Ratio: This refers to the ratio of the 'load' to 'capacity' or 'demand' to 'capacity'. It shows if the member is overloaded or not. For example, a ratio of 0.74 means that the member is not overloaded and has approx. 26% of reserve capacity. The utilization ratio for inclined and vertical members depends upon the strut and tie (STM) model, which changes according to the 'Use Vertical Tie' or 'Do not Use Vertical Tie' by inputting 1 or 0, respectively. Therefore, the user is provided the control over selecting the STM model. After this selection, press 'Re-Generate Output Model' to update the Sections 12 and 13. NOTE: Although an output section; it consists of input for supporting each inclined member with a vertical tie to refine the STM model. The first input field for vertical tie corresponds to the usage of vertical tie at first inclined member and vice versa.
A129: Section 15. | B129: The different node types in the STM models are identified. And, based on the node types, the nodal compressive strength of bearing and back face are calculated as per Clause 5.8.2.5.3 of AASHTO LRFD 2017.
A132: Section 16. | B132: The capacities for struts, ties and nodes are calculated based on Clause 5.8.2 of AASHTO LRFD 2017.
A134: Section 17. | B134: This section deals with the member force calculation for each member of STM model. The matrix stiffness method is implemented to determine the STM member forces considering uniform member stiffness for each member.

Sheet Appendix (hidden)
A3: Dropdown list for pier type
A4: Circular
A5: Square
A7: Dropdown list for development length check
A8: Yes
A9: No
A11: Development length formula for top and bottom bars (created for copying when required)
A12: Ld top, English unit: | C12: IF(E145>12*E144,IF(E144<=1.41,(MAX(1.25*(PI()*E144*E144/(4))*(D79)/SQRT(D78),0.4*E144*D79)),IF(E144<=1.7,2.7*(D79)/SQRT(D78),3.5*(D79)/SQRT(D78)))*1.4,MAX(38*(E144)/SQRT(D78)*(D79/60),6,8*E144))
A13: Ld top, SI unit: | C13: IF(E145>12*E144,IF(E144<=36,(MAX(1.25*(PI()*E144*E144/(4*645.16))*(D79/6.8947)/SQRT(D78/6.8947),0.4*E144*D79/(25.4*6.8947))),IF(E144<=43,2.7*(D79/6.8947)/SQRT(D78/6.8947),3.5*(D79/6.8947)/SQRT(D78/6.8947)))*1.4,MAX(38*(E144/25.4)/SQRT(D78/6.8947)*(D79/413.68),6,8*E144/25.4))*25.4
A15: Ld bottom, English unit: | C15: IF(E159>12*E158,IF(E158<=1.41,(MAX(1.25*(PI()*E158*E158/(4))*(D79)/SQRT(D78),0.4*(E158)*(D79))),IF(E158<=1.7,2.7*(D79)/SQRT(D78),3.5*(D79)/SQRT(D78))),MAX(38*(E158)/SQRT(D78)*(D79/60),6,8*E158))
A16: Ld bottom, SI unit: | C16: IF(E159>12*E158,IF(E158<=36,(MAX(1.25*(PI()*E158*E158/(4*645.16))*(D79/6.8947)/SQRT(D78/6.8947),0.4*(E158/25.4)*(D79/6.8947))),IF(E158<=43,2.7*(D79/6.8947)/SQRT(D78/6.8947),3.5*(D79/6.8947)/SQRT(D78/6.8947))),MAX(38*(E158/25.4)/SQRT(D78/6.8947)*(D79/413.68),6,8*E158/25.4))*25.4
A19: Test cell for development length: | D19: 11 | E19: [If first digit 1-> Top bar, Else if first digit 2-> Bottom bar][The second digit explains the regions: 1-> Cantilever part (Region 1); 2-> Region 2; 3->Region 3]
A21: Calculated coordinate for each possible nodes | H21: Automatization of 'Generate Load Table' (the value are printed here and then converted to feet and inches) | S21: Test cell to hide the Utilization Ratio of top members when the load is at centerline
A22: Top | B22: Bottom | C22: Top & Bottom "When Used Tie" | H22: Cum. Inches | J22: Distance Inches | S22: =IF(AND(ABS(Analysis!H29-Analysis!E57)<0.01*Analysis!H29,Analysis!G9=1),1,0) -> 0
A23: =Analysis!C52 -> 22.4 | B23: =Analysis!G52 -> 43.62017804 | C23: =(Analysis!C52+Analysis!G52)/2 -> 33.01008902 | H23: 22.375 | I23: =H23 -> 22.375 | J23: =I23 -> 22.375 | S23: =IF(AND(ABS(Analysis!H29-Analysis!E57)<0.01*Analysis!H29,Analysis!G9=3),1,0) -> 0
A24: =Analysis!C53 -> 22.4 | B24: =Analysis!G53 -> 43.62017804 | C24: =(Analysis!C53+Analysis!G53)/2 -> 33.01008902 | H24: 0 | I24: =IF(H24=0,H24+I23,H24) -> 22.375 | J24: =I24-I23 -> 0 | M24: Asymmetrical | S24: =IF(AND(ABS(Analysis!H29-Analysis!E57)<0.01*Analysis!H29,Analysis!G9=5),1,0) -> 0
A25: =Analysis!C54 -> 186.4 | B25: =Analysis!G54 -> 61.62017804 | C25: =(Analysis!C54+Analysis!G54)/2 -> 124.010089 | H25: 186.375 | I25: 186.375 | J25: 164 | N25: FALSE | S25: =IF(AND(ABS(Analysis!H29-Analysis!E57)<0.01*Analysis!H29,Analysis!G9=7),1,0) -> 0
A26: =Analysis!C55 -> 186.4 | B26: =Analysis!G55 -> 241.2757009 | C26: =(Analysis!C55+Analysis!G55)/2 -> 213.8378505 | H26: 0 | I26: 186.375 | J26: 0
A27: =Analysis!C56 -> 186.4 | B27: =Analysis!G56 -> 241.2757009 | C27: =(Analysis!C56+Analysis!G56)/2 -> 213.8378505 | H27: 0 | I27: 186.375 | J27: 0 | N27: Check if load is at centerline or not
A28: =Analysis!C57 -> 350.4 | B28: =Analysis!G57 -> 259.2757009 | C28: =(Analysis!C57+Analysis!G57)/2 -> 304.8378505 | H28: 350.375 | I28: 350.375 | J28: 164 | N28: =IF(ABS(H29-E57)<0.01*H29,1,0) -> 0
A29: =Analysis!E52 -> 350.4 | B29: =Analysis!I52 -> 259.2757009 | C29: =(Analysis!E52+Analysis!I52)/2 -> 304.8378505 | H29: 0 | I29: 350.375 | J29: 0 | U29: Column Check
A30: =Analysis!E53 -> 350.4 | B30: =Analysis!I53 -> 259.2757009 | C30: =(Analysis!E53+Analysis!I53)/2 -> 304.8378505 | H30: 0 | I30: 350.375 | J30: 0 | T30: 1 | U30: =IF(T30=1, "Circular", "Square") -> Circular
A31: =Analysis!E54 -> 350.4 | B31: =Analysis!I54 -> 259.2757009 | C31: =(Analysis!E54+Analysis!I54)/2 -> 304.8378505 | H31: 0 | I31: 350.375 | J31: 0 | N31: Sum of Total Pier Cap Length
A32: =Analysis!E55 -> 350.4 | B32: =Analysis!I55 -> 259.2757009 | C32: =(Analysis!E55+Analysis!I55)/2 -> 304.8378505 | H32: 0 | I32: 350.375 | J32: 0 | N32: =SUM(Analysis!I16:I20) -> 354
A33: =Analysis!E56 -> 350.4 | B33: =Analysis!I56 -> 259.2757009 | C33: =(Analysis!E56+Analysis!I56)/2 -> 304.8378505 | H33: 0 | I33: 350.375 | J33: 0 | N33: Sum of Total Load Length
A34: =Analysis!E57 -> 350.4 | B34: =Analysis!I57 -> 259.2757009 | C34: =(Analysis!E57+Analysis!I57)/2 -> 304.8378505 | H34: 0 | I34: 350.375 | J34: 0 | N34: =SUM(Analysis!F37:F48) -> 350.4
A36: =IF(Analysis!C217=1,"Use Tie", "Do not use Tie") -> Do not use Tie | C36: Vertical Tie Text (Developed based on 1 and 0; for input and computational convenience)
A37: =IF(Analysis!C219=1,"Use Tie", "Do not use Tie") -> Do not use Tie | H37: Reaction (stored as string to print for output drawing)
A38: =IF(Analysis!C221=1,"Use Tie", "Do not use Tie") -> Do not use Tie | H38: B2 | I38: =ROUND(Appendix!B79,0) -> 400
A39: =IF(Analysis!C223=1,"Use Tie", "Do not use Tie") -> Do not use Tie | H39: B4 | I39: =ROUND(Appendix!B80,0) -> 0 | O39: M-Factor
A40: =IF(Analysis!C225=1,"Use Tie", "Do not use Tie") -> Do not use Tie | H40: B6 | I40: =ROUND(Appendix!B81,0) -> 106 | O40: Depth | P40: =(Analysis!G23-Analysis!F123)/4 -> 3.75
A41: =IF(Analysis!C227=1,"Use Tie", "Do not use Tie") -> Do not use Tie | H41: B8 | I41: =ROUND(Appendix!B82,0) -> 294 | O41: M-Factor | P41: =MIN(SQRT((Analysis!F122+4*P40)*(Analysis!F123+4*P40)/(Analysis!F122*Analysis!F123)),2) -> 1.822478689
A42: =IF(Analysis!C229=1,"Use Tie", "Do not use Tie") -> Do not use Tie | E42: 0 | H42: B10 | I42: =ROUND(Appendix!B83,0) -> 0
A43: =IF(Analysis!C231=1,"Use Tie", "Do not use Tie") -> Do not use Tie | C43: 0 | D43: 0 | E43: 0 | H43: B12 | I43: =ROUND(Appendix!B84,0) -> 200
A44: =IF(Analysis!C233=1,"Use Tie", "Do not use Tie") -> Do not use Tie | C44: 0 | D44: 0 | E44: 0 | H44: B14 | I44: =ROUND(Appendix!B85,0) -> 0
A45: =IF(Analysis!C235=1,"Use Tie", "Do not use Tie") -> Do not use Tie | C45: 0 | D45: 0 | E45: 0 | H45: B16 | I45: =ROUND(Appendix!B86,0) -> 0
A46: =IF(Analysis!C237=1,"Use Tie", "Do not use Tie") -> Do not use Tie | C46: 0 | D46: 0 | E46: 0 | H46: B18 | I46: =ROUND(Appendix!B87,0) -> 0
A47: =IF(Analysis!C239=1,"Use Tie", "Do not use Tie") -> Do not use Tie | C47: 0 | D47: 0 | E47: 0 | H47: B20 | I47: =ROUND(Appendix!B88,0) -> 0
C48: 0 | D48: 0 | E48: 0 | H48: B22 | I48: =ROUND(Appendix!B89,0) -> 0
A49: Top Nodes | B49: Bottom Nodes | C49: Nodes Name Database (Used to read required alphanumeric node name) | H49: B24 | I49: =ROUND(Appendix!B90,0) -> 0
A50: A | B50: 1
A51: B | B51: 2
A52: C | B52: 3
A53: D | B53: 4
A54: E | B54: 5
A55: F | B55: 6
A56: G | B56: 7
A57: H | B57: 8
A58: I | B58: 9
A59: J | B59: 10
A60: K | B60: 11
A61: L | B61: 12
A62: M | B62: 13
A63: N | B63: 14
A64: O | B64: 15
A65: P | B65: 16
A66: Q | B66: 17
A67: R | B67: 18
A68: S | B68: 19
A69: T | B69: 20
A70: U | B70: 21
A71: V | B71: 22
A72: W | B72: 23
A73: X | B73: 24
A75: MEMBER FORCES CALCULATED FROM THE OUTPUT REACTIONS OF STIFFNESS METHOD (Member forces mathches the stiffness method member force)
F76: Angle with top horizontal member | I76: Inclined member | K76: Top member | O76: Bottom member | S76: Vertical member (Tie) | U76: Columns> | V76: =IF(N25=TRUE,2*Analysis!G9,Analysis!G9) -> 4
I77: Member | J77: Forces | K77: Member | L77: Forces | M77: Member | N77: Forces | O77: Member | P77: Forces | Q77: Member | R77: Forces | S77: Member | T77: Forces
A78: Corresponding Reaction Forces | C78: Support Proportioning | E78: With Vertical Ties | F78: θA (=θB) | G78: =IF(Analysis!C37=0,0,ATAN((Analysis!G22-Analysis!D297/2-Analysis!D298/2)/(0.5*(Analysis!C52-(Analysis!F25+Appendix!D79/2))))) -> -1.301217829 | H78: =G78*180/PI() -> -74.55428983 | I78: A-1/B-2 | J78: =IF(G78=0,0,-1*ABS(Appendix!B79/SIN(G78))) -> -414.9880234 | K78: A-B | L78: =IF(G78<0,-J78*COS(G78),J78*COS(G78)) -> 110.5217606 | M78: B-C | N78: =IF(G78<0,L78-J78*COS(G78),L78+J78*COS(G78)) -> 221.0435213 | O78: 1-2 | P78: =IF(G78<0,+J78*COS(G78),-J78*COS(G78)) -> -110.5217606 | Q78: 2-3 | R78: =IF(G78<0,P78+J78*COS(G78),P78-J78*COS(G78)) -> -221.0435213 | S78: B-1 | T78: =Appendix!B79 -> 400 | U78: B1 | V78: =IF(AND(B79=0,B80=0,B81=0),0,B79/(B79+B80+B81)*Analysis!G21) -> 28.46751477
A79: F2 | B79: 400 | C79: B1 | D79: =Analysis!C301 -> 27.24035608 | F79: θC (=θD) | G79: =ATAN((Analysis!G22-Analysis!D297/2-Analysis!D298/2)/(0.5*(Analysis!C53-(Analysis!F25+Appendix!D79+Appendix!D80/2)))) -> -1.144910818 | H79: =DEGREES(G79) -> -65.59855777 | I79: C-3/D-4 | J79: =-1*ABS(Appendix!B80/SIN(G79)) -> 0 | K79: C-D | L79: =IF(G79<0,N78-J79*COS(G79),N78+J79*COS(G79)) -> 221.0435213 | M79: D-F | N79: 221.0435213 | O79: 3-4 | P79: =IF(G79<0,R78+J79*COS(G79),R78-J79*COS(G79)) -> -221.0435213 | Q79: 4-6 | R79: -221.0435213 | S79: D-3 | T79: =Appendix!B80 -> 0 | U79: B2 | V79: =IF(AND(B79=0,B80=0,B81=0),0,B80/(B79+B80+B81)*Analysis!G21) -> 0
A80: F4 | B80: 0 | C80: B2 | D80: =Analysis!C302 -> 0 | F80: θE (=θF) | G80: =ATAN((Analysis!G22-Analysis!D297/2-Analysis!D298/2)/(0.5*(Analysis!C54-(Analysis!F25+Analysis!G21-Appendix!D81/2)))) -> 0.5517271585 | H80: 31.61163763 | I80: E-5/F-6 | J80: =-1*ABS(Appendix!B81/SIN(G80)) -> -201.9229889 | K80: F-E | L80: 49.08176703 | M80: E-G | N80: -122.8799872 | O80: 6-5 | P80: =IF(G80<0,R79+J80*COS(G80),R79-J80*COS(G80)) -> -49.08176703 | Q80: 5-7 | R80: 122.8799872 | S80: F-5 | T80: =Appendix!B81 -> 105.8397305 | U80: B3 | V80: =IF(AND(B79=0,B80=0,B81=0),0,B81/(B79+B80+B81)*Analysis!G21) -> 7.532485227
A81: F6 | B81: 105.8397305 | C81: B3 | D81: =Analysis!C303 -> 8.759643917 | F81: θG (=θH) | G81: =ATAN((Analysis!G22-Analysis!D297/2-Analysis!D298/2)/(0.5*(Analysis!C55-(Analysis!F26+Appendix!D82/2)))) -> -0.9503868532 | H81: -54.45315559 | I81: G-7/H-8 | J81: =-1*ABS(Appendix!B82/SIN(G81)) -> -361.5359368 | K81: G-H | L81: 87.3055724 | M81: H-I | N81: 297.491132 | O81: 7-8 | P81: -87.3055724 | Q81: 8-9 | R81: -297.491132 | S81: H-7 | T81: =Appendix!B82 -> 294.1602695 | U81: B4 | V81: =IF(AND(B82=0,B83=0,B84=0),0,IF(V76=3,B82/(B82+B83)*(Analysis!G21/2),B82/(B82+B83+B84)*Analysis!G21)) -> 21.42982825
A82: F8 | B82: 294.1602695 | C82: B4 | D82: =Analysis!C304 -> 14.55140187 | F82: θI (=θJ) | G82: =ATAN((Analysis!G22-Analysis!D297/2-Analysis!D298/2)/(0.5*(Analysis!C56-(Analysis!F26+Appendix!D82+Appendix!D83/2)))) -> -0.8904326525 | H82: -51.01803293 | I82: I-9/J-10 | J82: =-1*ABS(Appendix!B83/SIN(G82)) -> 0 | K82: I-J | L82: 297.491132 | M82: J-L | N82: 297.491132 | O82: 9-10 | P82: -297.491132 | Q82: 10-12 | R82: -297.491132 | S82: J-9 | T82: =Appendix!B83 -> 0 | U82: B5 | V82: =IF(AND(B82=0,B83=0,B84=0),0,IF(V76=3,B83/(B82+B83)*(Analysis!G21/2),B83/(B82+B83+B84)*Analysis!G21)) -> 0
A83: F10 | B83: 0 | C83: B5 | D83: =Analysis!C305 -> 0 | F83: θK (=θL) | G83: =ATAN((Analysis!G22-Analysis!D297/2-Analysis!D298/2)/(0.5*(Analysis!C57-(Analysis!F26+Analysis!G21-Appendix!D84/2)))) -> 0.7003020416 | H83: 40.12435137 | I83: L-12/K-11 | J83: =-1*ABS(Appendix!B84/SIN(G83)) -> -310.3427917 | K83: L-K | L83: 60.18826985 | M83: K-M | N83: -177.1145923 | O83: 12-11 | P83: -60.18826985 | Q83: 11-13 | R83: 177.1145923 | S83: L-11 | T83: =Appendix!B84 -> 200 | U83: B6 | V83: =IF(AND(B82=0,B83=0,B84=0),0,B84/(B82+B83+B84)*Analysis!G21) -> 14.57017175
A84: F12 | B84: 200 | C84: B6 | D84: =Analysis!C306 -> 21.44859813 | F84: θM (=θN) | G84: =ATAN((Analysis!G22-Analysis!D297/2-Analysis!D298/2)/(0.5*(Analysis!E52-(Analysis!F27+Appendix!D85/2)))) -> 1.385448377 | H84: 79.38034472 | I84: M-13/N-14 | J84: =-1*ABS(Appendix!B85/SIN(G84)) -> 0 | K84: M-N | L84: -177.1145923 | M84: N-O | N84: -177.1145923 | O84: 13-14 | P84: 177.1145923 | Q84: 14-15 | R84: 177.1145923 | S84: N-13 | T84: =Appendix!B85 -> 0 | U84: B7 | V84: =IF(AND(B85=0,B86=0,B87=0),0,IF(V76=5,B85/(B85+B86)*(Analysis!G21/2),B85/(B85+B86+B87)*Analysis!G21)) -> 0
A85: F14 | B85: 0 | C85: B7 | D85: =Analysis!C307 -> 0 | F85: θO (=θP) | G85: =ATAN((Analysis!G22-Analysis!D297/2-Analysis!D298/2)/(0.5*(Analysis!E53-(Analysis!F27+Appendix!D85+Appendix!D86/2)))) -> 1.385448377 | H85: 79.38034472 | I85: O-15/P-16 | J85: =-1*ABS(Appendix!B86/SIN(G85)) -> 0 | K85: 0-P | L85: -177.1145923 | M85: P-R | N85: -177.1145923 | O85: 15-16 | P85: 177.1145923 | Q85: 16-18 | R85: 177.1145923 | S85: P-15 | T85: =Appendix!B86 -> 0 | U85: B8 | V85: =IF(AND(B85=0,B86=0,B87=0),0,IF(V76=5,B86/(B85+B86)*(Analysis!G21/2),B86/(B85+B86+B87)*Analysis!G21)) -> 0
A86: F16 | B86: 0 | C86: B8 | D86: =Analysis!C308 -> 0 | F86: θQ (=θR) | G86: =ATAN((Analysis!G22-Analysis!D297/2-Analysis!D298/2)/(0.5*(Analysis!E54-(Analysis!F27+Analysis!G21-Appendix!D87/2)))) -> -1.296628876 | H86: -74.29136217 | I86: R-18/Q-17 | J86: =-1*ABS(Appendix!B87/SIN(G86)) -> 0 | K86: R-Q | L86: -177.1145923 | M86: Q-S | N86: -177.1145923 | O86: 18-17 | P86: 177.1145923 | Q86: 17-19 | R86: 177.1145923 | S86: R-17 | T86: =Appendix!B87 -> 0 | U86: B9 | V86: =IF(AND(B85=0,B86=0,B87=0),0,B87/(B85+B86+B87)*Analysis!G21) -> 0
A87: F18 | B87: 0 | C87: B9 | D87: =Analysis!C309 -> 0 | F87: θS (=θT) | G87: =ATAN((Analysis!G22-Analysis!D297/2-Analysis!D298/2)/(0.5*(Analysis!E55-(Analysis!F28+Appendix!D88/2)))) -> 1.385448377 | H87: 79.38034472 | I87: S-19/T-20 | J87: =-1*ABS(Appendix!B88/SIN(G87)) -> 0 | K87: S-T | L87: -177.1145923 | M87: T-U | N87: -177.1145923 | O87: 19-20 | P87: 177.1145923 | Q87: 20-21 | R87: 177.1145923 | S87: T-19 | T87: =Appendix!B88 -> 0 | U87: B10 | V87: =IF(AND(B88=0,B89=0,B90=0),0,IF(V76=7,B88/(B88+B89)*(Analysis!G21/2),B88/(B88+B89+B90)*Analysis!G21)) -> 0
A88: F20 | B88: 0 | C88: B10 | D88: =Analysis!C310 -> 0 | F88: θU (=θV) | G88: =ATAN((Analysis!G22-Analysis!D297/2-Analysis!D298/2)/(0.5*(Analysis!E56-(Analysis!F28+Appendix!D88+Appendix!D89/2)))) -> 1.385448377 | H88: 79.38034472 | I88: U-21/V-22 | J88: =-1*ABS(Appendix!B89/SIN(G88)) -> 0 | K88: U-V | L88: -177.1145923 | M88: V-X | N88: -177.1145923 | O88: 21-22 | P88: 177.1145923 | Q88: 22-24 | R88: 177.1145923 | S88: V-21 | T88: =Appendix!B89 -> 0 | U88: B11 | V88: =IF(AND(B88=0,B89=0,B90=0),0,IF(V76=5,B89/(B88+B89)*(Analysis!G21/2),B89/(B88+B89+B90)*Analysis!G21)) -> 0
A89: F22 | B89: 0 | C89: B11 | D89: =Analysis!C311 -> 0 | F89: θW (=θX) | G89: =ATAN((Analysis!G22-Analysis!D297/2-Analysis!D298/2)/(0.5*(Analysis!E57-(Analysis!F28+Analysis!G21-Appendix!D90/2)))) -> -1.296628876 | H89: -74.29136217 | I89: X-24/W-23 | J89: =-1*ABS(Appendix!B90/SIN(G89)) -> 0 | K89: X-W | L89: -177.1145923 | M89: W+ | N89: -177.1145923 | O89: 24-23 | P89: 177.1145923 | Q89: 24+ | R89: 177.1145923 | S89: X-23 | T89: =Appendix!B90 -> 0 | U89: B12 | V89: =IF(AND(B88=0,B89=0,B90=0),0,B90/(B88+B89+B90)*Analysis!G21) -> 0
A90: F24 | B90: 0 | C90: B12 | D90: =Analysis!C312 -> 0 | E90: Without Vertical Ties | F90: θA | G90: =IF(Analysis!C37=0,0,ATAN((Analysis!G22-Analysis!D297/2-Analysis!D298/2)/((Analysis!C52-(Analysis!F25+Appendix!D79/2))))) -> -1.065952403 | H90: -61.07457383 | I90: A-2 | J90: =IF(G90=0,0,-1*ABS(Appendix!B79/SIN(G90))) -> -457.0122956 | K90: A-C | L90: =N78 -> 221.0435213 | O90: 2-4 | P90: =R78 -> -221.0435213
F91: θC | G91: =ATAN((Analysis!G22-Analysis!D297/2-Analysis!D298/2)/((Analysis!C53-(Analysis!F25+Appendix!D79+Appendix!D80/2)))) -> -0.8339621688 | H91: -47.78251255 | I91: C-4 | J91: =-1*ABS(Appendix!B80/SIN(G91)) -> 0 | K91: C-E | L91: 221.0435213 | O91: 4-6 | P91: -221.0435213
F92: θE | G92: =ATAN((Analysis!G22-Analysis!D297/2-Analysis!D298/2)/((Analysis!C54-(Analysis!F25+Analysis!G21-Appendix!D81/2)))) -> 0.2985443843 | H92: 17.10533322 | I92: E-6 | J92: =-1*ABS(Appendix!B81/SIN(G92)) -> -359.8408373 | K92: E-G | L92: -122.8799872 | O92: 6-8 | P92: 122.8799872
F93: θG | G93: =ATAN((Analysis!G22-Analysis!D297/2-Analysis!D298/2)/((Analysis!C55-(Analysis!F26+Appendix!D82/2)))) -> -0.6105670684 | H93: -34.98291613 | I93: G-8 | J93: =-1*ABS(Appendix!B82/SIN(G93)) -> -513.0712836 | K93: G-I | L93: 297.491132 | O93: 8-10 | P93: -297.491132
F94: θI | G94: =ATAN((Analysis!G22-Analysis!D297/2-Analysis!D298/2)/((Analysis!C56-(Analysis!F26+Appendix!D82+Appendix!D83/2)))) -> -0.5534383753 | H94: -31.70968312 | I94: I-10 | J94: =-1*ABS(Appendix!B83/SIN(G94)) -> 0 | K94: I-K | L94: 297.491132 | O94: 10-12 | P94: -297.491132
F95: θK | G95: =ATAN((Analysis!G22-Analysis!D297/2-Analysis!D298/2)/((Analysis!C57-(Analysis!F26+Analysis!G21-Appendix!D84/2)))) -> 0.3988195215 | H95: 22.85067537 | I95: K-12 | J95: =-1*ABS(Appendix!B84/SIN(G95)) -> -515.0248475 | K95: K-M | L95: -177.1145923 | O95: 12-14 | P95: 177.1145923
F96: θM | G96: =ATAN((Analysis!G22-Analysis!D297/2-Analysis!D298/2)/((Analysis!E52-(Analysis!F27+Appendix!D85/2)))) -> 1.212025657 | H96: 69.44395478 | I96: M-14 | J96: =-1*ABS(Appendix!B85/SIN(G96)) -> 0 | K96: M-O | L96: -177.1145923 | O96: 14-16 | P96: 177.1145923
F97: θO | G97: =ATAN((Analysis!G22-Analysis!D297/2-Analysis!D298/2)/((Analysis!E53-(Analysis!F27+Appendix!D85+Appendix!D86/2)))) -> 1.212025657 | H97: 69.44395478 | I97: O-16 | J97: =-1*ABS(Appendix!B86/SIN(G97)) -> 0 | K97: O-Q | L97: -177.1145923 | O97: 16-18 | P97: 177.1145923
F98: θQ | G98: =ATAN((Analysis!G22-Analysis!D297/2-Analysis!D298/2)/((Analysis!E54-(Analysis!F27+Analysis!G21-Appendix!D87/2)))) -> -1.058406866 | H98: -60.64224646 | I98: Q-18 | J98: =-1*ABS(Appendix!B87/SIN(G98)) -> 0 | K98: Q-S | L98: -177.1145923 | O98: 18-20 | P98: 177.1145923
F99: θS | G99: =ATAN((Analysis!G22-Analysis!D297/2-Analysis!D298/2)/((Analysis!E55-(Analysis!F28+Appendix!D88/2)))) -> 1.212025657 | H99: 69.44395478 | I99: S-20 | J99: =-1*ABS(Appendix!B88/SIN(G99)) -> 0 | K99: S-U | L99: -177.1145923 | O99: 20-22 | P99: 177.1145923
F100: θU | G100: =ATAN((Analysis!G22-Analysis!D297/2-Analysis!D298/2)/((Analysis!E56-(Analysis!F28+Appendix!D88+Appendix!D89/2)))) -> 1.212025657 | H100: 69.44395478 | I100: U-22 | J100: =-1*ABS(Appendix!B89/SIN(G100)) -> 0 | K100: U-W | L100: -177.1145923 | O100: 22-24 | P100: 177.1145923
F101: θW | G101: =ATAN((Analysis!G22-Analysis!D297/2-Analysis!D298/2)/((Analysis!E57-(Analysis!F28+Analysis!G21-Appendix!D90/2)))) -> -1.058406866 | H101: -60.64224646 | I101: W-24 | J101: =-1*ABS(Appendix!B90/SIN(G101)) -> 0 | K101: W+ | L101: -177.1145923 | O101: 24+ | P101: 177.1145923
B128: Warning Checks
B129: =Analysis!G16 -> 4 | C129: =Analysis!H16 -> 0
B130: =Analysis!G17 -> 17 | C130: =Analysis!H17 -> 0
B131: =Analysis!G18 -> 8 | C131: =Analysis!H18 -> 6
B132: =Analysis!G19 -> 0 | C132: =Analysis!H19 -> 0
B133: =Analysis!G20 -> 0 | C133: =Analysis!H20 -> 0
B134: =Analysis!G21 -> 36
B135: =Analysis!G22 -> 48.4
B136: =Analysis!G23 -> 36

Sheet Rebar Area & Centroid
B2: Top Bars
B3: Layer | C3: Bar Area | D3: No.of Bar | E3: Distance
B4: Layer1 | C4: 1 | D4: 6 | E4: 3
B5: Layer2 | C5: 1 | D5: 6 | E5: 7
B6: Layer3
B7: Layer4
B8: Layer5
B9: Layer6
B10: Layer7
B11: Total top steel | E11: =C4*D4+C5*D5+C6*D6+C7*D7+C8*D8+C9*D9+C10*D10 -> 12
B12: Centroid from top of section | E12: =(C4*D4*E4+C5*D5*E5+C6*D6*E6+C7*D7*E7+C8*D8*E8+C9*D9*E9+C10*D10*E10)/E11 -> 5
B14: Bottom Bars
B15: Layer | C15: Bar Area | D15: No.of Bar | E15: Distance
B16: Layer1 | C16: 1.27 | D16: 7 | E16: 4
B17: Layer2 | C17: 1.27 | D17: 4 | E17: 8
B18: Layer3
B19: Layer4
B20: Layer5
B21: Layer6
B22: Layer7
B23: Total bottom steel | E23: =C16*D16+C17*D17+C18*D18+C19*D19+C20*D20+C21*D21+C22*D22 -> 13.97
B24: Centroid from bottom of section | E24: =(C16*D16*E16+C17*D17*E17+C18*D18*E18+C19*D19*E19+C20*D20*E20+C21*D21*E21+C22*D22*E22)/E23 -> 5.454545455

Sheet About

Sheet !! Hide this!!-Input_info_model (hidden)
B2: Analysis Input
B4: Geometry Details for Sample Input Drawing | J4: Cumulative Distance of Column Edge From Left Pier (E, var)
B5: Distance from start of the pier cap to center of first column (C1) | G5: 2000 | H5: C1 | J5: Distance from Tip of Cantilever to near edge of 1st Pier | O5: =G5-G10/2 -> 1550
B6: Distance from center of first column to center of second column (C2) | G6: 4000 | H6: C2 | J6: Distance from Tip of Cantilever to near edge of 1st Pier | O6: =G5+G6-G10/2 -> 5550
B7: Distance from center of second column to center of third column (C3) | G7: 4000 | H7: C3 | J7: Distance from Tip of Cantilever to near edge of 1st Pier | O7: =O6+G7 -> 9550
B8: Distance from center of third column to center of fourth column (C4) | G8: 4000 | H8: C4 | J8: Distance from Tip of Cantilever to near edge of 1st Pier | O8: =O7+G8 -> 13550
B9: Distance from center of fourth column to center line of section (C5) | G9: 2000 | H9: C5
B10: Column width (W) | G10: 900 | H10: W
B11: Depth of pier cap (h) | G11: 1200 | H11: h
B12: Thickness of pier cap (t) | G12: 900 | H12: t
F14: Approx. Effective depth of Pier-Cap (d=0.9*h) | G14: =0.9*G11 -> 1080
B16: Sample Ultimate Loads and Their Position
B17: Load | D17: Distance | F17: Region Text
B18: P1 | C18: 1146 | D18: 400 | E18: A1 | F18: R1 | J18: Distance of Load from the edge of the pier cap | K18: D1 | L18: =D18 -> 400
B19: P2 | C19: 1146 | D19: 1500 | E19: A2 | F19: R2 | K19: D2 | L19: =L18+D19 -> 1900
B20: P3 | C20: 1146 | D20: 1333 | E20: A3 | F20: R3 | K20: D3 | L20: 3233
B21: P4 | C21: 1146 | D21: 1333 | E21: A4 | F21: R4 | K21: D4 | L21: 4566
B22: P5 | C22: 1146 | D22: 1333 | E22: A5 | F22: R5 | K22: D5 | L22: 5899
B23: P6 | C23: 1146 | D23: 1333 | E23: A6 | F23: R6 | K23: D6 | L23: 7232
B24: P7 | C24: 1146 | D24: 1333 | E24: A7 | F24: R7 | K24: D7 | L24: 8565
B25: P8 | C25: 1146 | D25: 1333 | E25: A8 | F25: R8 | K25: D8 | L25: 9898
B26: P9 | C26: 1146 | D26: 1333 | E26: A9 | F26: R9 | K26: D9 | L26: 11231
B27: P10 | C27: 1146 | D27: 1333 | E27: A10 | F27: R10 | K27: D10 | L27: 12564
B28: P11 | C28: 1146 | D28: 1333 | E28: A11 | F28: R11 | K28: D11 | L28: 13897
B29: P12 | C29: 1146 | D29: 1333 | E29: A12 | F29: R12 | K29: D12 | L29: 15230
F30: R13
